[Event "Titled Tuesday Blitz March 21 Early 2023"]
[White "Semenova, Alina"]
[Black "Barria Santos, Jose Guilherme"]
[WhiteFideId "24113875"]
[BlackFideId "1939300"]
[WhiteElo "1833"]
[BlackElo "2301"]
[Result "0-1"]
[Round "07"]
[TimeControl "180+2"]
[Date "2023.03.21"]
[WhiteClock "0:00:02"]
[BlackClock "0:00:23"]

1. e4 {[%clk 0:03:00]}  c5 {[%clk 0:03:00]} 2. Nf3 {[%clk 0:03:00]}  d6 {[%clk 0:03:00]} 3. d4 {[%clk 0:03:01]}  cxd4 {[%clk 0:03:00]} 4. Nxd4 {[%clk 0:03:02]}  Nf6 {[%clk 0:03:01]} 5. Nc3 {[%clk 0:03:02]}  a6 {[%clk 0:03:01]} 6. f3 {[%clk 0:03:03]}  e5 {[%clk 0:03:01]} 7. Nb3 {[%clk 0:03:02]}  Be7 {[%clk 0:03:01]} 8. Be3 {[%clk 0:03:03]}  Be6 {[%clk 0:03:02]} 9. Qd2 {[%clk 0:03:03]}  h5 {[%clk 0:03:02]} 10. O-O-O {[%clk 0:03:04]}  Nbd7 {[%clk 0:03:02]} 11. Kb1 {[%clk 0:02:55]}  Rc8 {[%clk 0:03:02]} 12. h3 {[%clk 0:02:52]}  h4 {[%clk 0:03:01]} 13. Nd5 {[%clk 0:02:38]}  Bxd5 {[%clk 0:02:53]} 14. exd5 {[%clk 0:02:39]}  Nb6 {[%clk 0:02:53]} 15. Bxb6 {[%clk 0:02:33]}  Qxb6 {[%clk 0:02:54]} 16. Qa5 {[%clk 0:02:25]}  Bd8 {[%clk 0:02:43]} 17. Qxb6 {[%clk 0:02:14]}  Bxb6 {[%clk 0:02:44]} 18. Bd3 {[%clk 0:01:44]}  Nh5 {[%clk 0:02:38]} 19. Rhe1 {[%clk 0:01:36]}  Nf4 {[%clk 0:02:32]} 20. Rd2 {[%clk 0:01:22]}  Rc7 {[%clk 0:02:14]} 21. Be4 {[%clk 0:01:18]}  Ke7 {[%clk 0:02:10]} 22. Nc1 {[%clk 0:01:14]}  Ba5 {[%clk 0:02:05]} 23. c3 {[%clk 0:01:14]}  b5 {[%clk 0:02:04]} 24. Nd3 {[%clk 0:01:11]}  Nxd3 {[%clk 0:01:56]} 25. Rxd3 {[%clk 0:01:11]}  b4 {[%clk 0:01:56]} 26. Kc2 {[%clk 0:00:50]}  bxc3 {[%clk 0:01:52]} 27. bxc3 {[%clk 0:00:51]}  Rhc8 {[%clk 0:01:51]} 28. Ree3 {[%clk 0:00:46]}  Bb6 {[%clk 0:01:49]} 29. Re2 {[%clk 0:00:37]}  Kf6 {[%clk 0:01:43]} 30. Kb3 {[%clk 0:00:16]}  Rb8 {[%clk 0:01:38]} 31. Rc2 {[%clk 0:00:13]}  Bg1+ {[%clk 0:00:31]} 32. Ka3 {[%clk 0:00:07]}  Rc5 {[%clk 0:00:31]} 33. Ka4 {[%clk 0:00:05]}  Rbb5 {[%clk 0:00:27]} 34. c4 {[%clk 0:00:03]}  Ra5+ {[%clk 0:00:27]} 35. Kb3 {[%clk 0:00:03]}  Bd4 {[%clk 0:00:23]} 36. a4 {[%clk 0:00:02]}  Rc7 {[%clk 0:00:23]} 37. Rd1 {[%clk 0:00:02]}  Rb7+ {[%clk 0:00:23]} 38. Ka3 {[%clk 0:00:02]}  Bc5+ {[%clk 0:00:23]} 0-1


[Site "https://www.chess.com"]

[Event "Titled Tuesday Blitz March 21 Early 2023"]
[White "babbilator"]
[Black "ritanovikova"]
[WhiteElo "2209"]
[BlackElo "2200"]
[Result "1-0"]
[Round "07"]
[TimeControl "180+2"]
[Date "2023.03.21"]
[WhiteClock "0:00:02"]
[BlackClock "0:00:29"]

1. e4 {[%clk 0:03:00]}  d5 {[%clk 0:02:59]} 2. exd5 {[%clk 0:02:58]}  Qxd5 {[%clk 0:02:59]} 3. Nc3 {[%clk 0:02:57]}  Qd8 {[%clk 0:02:52]} 4. Bc4 {[%clk 0:02:49]}  Nf6 {[%clk 0:02:51]} 5. d3 {[%clk 0:02:38]}  Bf5 {[%clk 0:02:48]} 6. Nge2 {[%clk 0:02:31]}  e6 {[%clk 0:02:37]} 7. O-O {[%clk 0:02:23]}  h6 {[%clk 0:02:35]} 8. Ng3 {[%clk 0:02:19]}  Bg6 {[%clk 0:02:35]} 9. Nce2 {[%clk 0:02:11]}  Nh5 {[%clk 0:02:29]} 10. c3 {[%clk 0:01:47]}  Nxg3 {[%clk 0:02:26]} 11. fxg3 {[%clk 0:01:41]}  Bh5 {[%clk 0:02:20]} 12. Qe1 {[%clk 0:01:33]}  Bxe2 {[%clk 0:02:19]} 13. Qxe2 {[%clk 0:01:33]}  Be7 {[%clk 0:02:11]} 14. Rxf7 {[%clk 0:01:24]}  Kxf7 {[%clk 0:01:41]} 15. Qxe6+ {[%clk 0:01:21]}  Ke8 {[%clk 0:01:41]} 16. Qg6+ {[%clk 0:01:14]}  Kd7 {[%clk 0:01:38]} 17. Be6+ {[%clk 0:00:38]}  Kc6 {[%clk 0:01:36]} 18. Be3 {[%clk 0:00:32]}  Bf6 {[%clk 0:00:38]} 19. Qe4+ {[%clk 0:00:20]}  Kd6 {[%clk 0:00:38]} 20. Bf7 {[%clk 0:00:13]}  Qd7 {[%clk 0:00:30]} 21. Qb4+ {[%clk 0:00:01]}  c5 {[%clk 0:00:29]} 22. Qxc5# {[%clk 0:00:02]} 1-0


[Site "https://www.chess.com"]

[Event "Titled Tuesday Blitz March 21 Early 2023"]
[White "Martin Carmona, Gaston Manuel"]
[Black "Winkels, Marcel"]
[WhiteFideId "22284567"]
[BlackFideId "1003887"]
[WhiteElo "2245"]
[BlackElo "1900"]
[Result "1-0"]
[Round "07"]
[TimeControl "180+2"]
[Date "2023.03.21"]
[WhiteClock "0:00:21"]
[BlackClock "0:00:02"]

1. Nf3 {[%clk 0:02:56]}  Nf6 {[%clk 0:02:58]} 2. d4 {[%clk 0:02:54]}  g6 {[%clk 0:02:56]} 3. c4 {[%clk 0:02:54]}  Bg7 {[%clk 0:02:56]} 4. Nc3 {[%clk 0:02:54]}  d5 {[%clk 0:02:56]} 5. e3 {[%clk 0:02:54]}  O-O {[%clk 0:02:54]} 6. cxd5 {[%clk 0:02:52]}  Nxd5 {[%clk 0:02:53]} 7. Bc4 {[%clk 0:02:52]}  Nxc3 {[%clk 0:02:52]} 8. bxc3 {[%clk 0:02:53]}  c5 {[%clk 0:02:52]} 9. O-O {[%clk 0:02:50]}  Nc6 {[%clk 0:02:51]} 10. Qe2 {[%clk 0:02:45]}  Bg4 {[%clk 0:02:49]} 11. h3 {[%clk 0:02:42]}  Bxf3 {[%clk 0:02:49]} 12. Qxf3 {[%clk 0:02:43]}  Rc8 {[%clk 0:02:46]} 13. Rb1 {[%clk 0:02:42]}  cxd4 {[%clk 0:02:43]} 14. cxd4 {[%clk 0:02:32]}  Nxd4 {[%clk 0:02:41]} 15. exd4 {[%clk 0:02:32]}  Rxc4 {[%clk 0:02:40]} 16. Rxb7 {[%clk 0:02:33]}  Bxd4 {[%clk 0:02:32]} 17. Bh6 {[%clk 0:02:33]}  Bg7 {[%clk 0:02:06]} 18. Bxg7 {[%clk 0:02:32]}  Kxg7 {[%clk 0:02:06]} 19. Rxa7 {[%clk 0:02:33]}  e6 {[%clk 0:02:04]} 20. Rb1 {[%clk 0:02:29]}  Qc8 {[%clk 0:01:59]} 21. Rbb7 {[%clk 0:02:27]}  Qe8 {[%clk 0:01:49]} 22. g3 {[%clk 0:02:14]}  Rc5 {[%clk 0:01:24]} 23. a4 {[%clk 0:02:11]}  Rf5 {[%clk 0:01:23]} 24. Qc3+ {[%clk 0:02:11]}  Kg8 {[%clk 0:01:22]} 25. a5 {[%clk 0:02:10]}  Qc8 {[%clk 0:01:19]} 26. Rc7 {[%clk 0:02:06]}  Qb8 {[%clk 0:01:18]} 27. Rab7 {[%clk 0:01:59]}  Qa8 {[%clk 0:01:16]} 28. Ra7 {[%clk 0:01:55]}  Qf3 {[%clk 0:01:13]} 29. Qxf3 {[%clk 0:01:39]}  Rxf3 {[%clk 0:01:12]} 30. Kg2 {[%clk 0:01:37]}  Ra3 {[%clk 0:01:13]} 31. a6 {[%clk 0:01:37]}  h5 {[%clk 0:01:04]} 32. h4 {[%clk 0:01:35]}  Kg7 {[%clk 0:01:00]} 33. Rc6 {[%clk 0:01:32]}  Kg8 {[%clk 0:00:58]} 34. Rcc7 {[%clk 0:01:26]}  Kg7 {[%clk 0:00:58]} 35. Kf1 {[%clk 0:01:27]}  Ra2 {[%clk 0:00:57]} 36. Ke1 {[%clk 0:01:23]}  Kg8 {[%clk 0:00:56]} 37. Kf1 {[%clk 0:01:13]}  Kg7 {[%clk 0:00:55]} 38. Rc6 {[%clk 0:01:13]}  Kg8 {[%clk 0:00:54]} 39. Rb7 {[%clk 0:01:09]}  Ra8 {[%clk 0:00:51]} 40. Rcc7 {[%clk 0:01:06]}  R8xa6 {[%clk 0:00:43]} 41. Rxf7 {[%clk 0:01:06]}  e5 {[%clk 0:00:34]} 42. Rg7+ {[%clk 0:01:05]}  Kf8 {[%clk 0:00:33]} 43. Rbf7+ {[%clk 0:01:04]}  Ke8 {[%clk 0:00:33]} 44. Re7+ {[%clk 0:01:01]}  Kf8 {[%clk 0:00:33]} 45. Rgf7+ {[%clk 0:00:59]}  Kg8 {[%clk 0:00:32]} 46. Rf3 {[%clk 0:00:55]}  Ra1+ {[%clk 0:00:28]} 47. Kg2 {[%clk 0:00:54]}  R1a3 {[%clk 0:00:28]} 48. Rff7 {[%clk 0:00:40]}  e4 {[%clk 0:00:25]} 49. Rb7 {[%clk 0:00:40]}  e3 {[%clk 0:00:23]} 50. Rfc7 {[%clk 0:00:32]}  Ra8 {[%clk 0:00:18]} 51. fxe3 {[%clk 0:00:28]}  Rxe3 {[%clk 0:00:16]} 52. Rg7+ {[%clk 0:00:27]}  Kf8 {[%clk 0:00:15]} 53. Rxg6 {[%clk 0:00:27]}  Ra2+ {[%clk 0:00:14]} 54. Kh3 {[%clk 0:00:25]}  Re1 {[%clk 0:00:10]} 55. Rf6+ {[%clk 0:00:19]}  Ke8 {[%clk 0:00:09]} 56. Re6+ {[%clk 0:00:10]}  Rxe6 {[%clk 0:00:07]} 57. Rb5 {[%clk 0:00:11]}  Rh6 {[%clk 0:00:06]} 58. Re5+ {[%clk 0:00:11]}  Kf7 {[%clk 0:00:05]} 59. Rg5 {[%clk 0:00:11]}  Kf6 {[%clk 0:00:05]} 60. Rb5 {[%clk 0:00:11]}  Ra3 {[%clk 0:00:05]} 61. Rb6+ {[%clk 0:00:11]}  Kg7 {[%clk 0:00:05]} 62. Rb7+ {[%clk 0:00:12]}  Kg6 {[%clk 0:00:05]} 63. Rb6+ {[%clk 0:00:12]}  Kg7 {[%clk 0:00:05]} 64. Rb7+ {[%clk 0:00:13]}  Kf8 {[%clk 0:00:05]} 65. Rb5 {[%clk 0:00:14]}  Rg6 {[%clk 0:00:05]} 66. Rxh5 {[%clk 0:00:12]}  Rgxg3+ {[%clk 0:00:05]} 67. Kh2 {[%clk 0:00:12]}  Rh3+ {[%clk 0:00:05]} 68. Kg2 {[%clk 0:00:12]}  Rag3+ {[%clk 0:00:05]} 69. Kf2 {[%clk 0:00:13]}  Rg4 {[%clk 0:00:05]} 70. Rf5+ {[%clk 0:00:13]}  Kg7 {[%clk 0:00:04]} 71. Rb5 {[%clk 0:00:14]}  Rgxh4 {[%clk 0:00:04]} 72. Rb7+ {[%clk 0:00:15]}  Kg6 {[%clk 0:00:04]} 73. Rb6+ {[%clk 0:00:15]}  Kg5 {[%clk 0:00:04]} 74. Rb5+ {[%clk 0:00:16]}  Kf4 {[%clk 0:00:04]} 75. Rb4+ {[%clk 0:00:17]}  Ke5 {[%clk 0:00:04]} 76. Rb7 {[%clk 0:00:18]}  Kd4 {[%clk 0:00:04]} 77. Kg2 {[%clk 0:00:19]}  Kc3 {[%clk 0:00:04]} 78. Rc7+ {[%clk 0:00:19]}  Kd3 {[%clk 0:00:03]} 79. Rd7+ {[%clk 0:00:19]}  Ke4 {[%clk 0:00:02]} 80. Ra7 {[%clk 0:00:19]}  Kf5 {[%clk 0:00:02]} 81. Ra5+ {[%clk 0:00:20]}  Kg4 {[%clk 0:00:03]} 82. Ra6 {[%clk 0:00:20]}  Kh5 {[%clk 0:00:02]} 83. Kg1 {[%clk 0:00:21]} 1-0


[Site "https://www.chess.com"]

[Event "Titled Tuesday Blitz March 21 Early 2023"]
[White "th3d4rkness"]
[Black "Vagman, Roy"]
[BlackFideId "2828995"]
[WhiteElo "2111"]
[BlackElo "2188"]
[Result "0-1"]
[Round "07"]
[TimeControl "180+2"]
[Date "2023.03.21"]
[WhiteClock "0:00:22"]
[BlackClock "0:00:32"]

1. d4 {[%clk 0:03:00]}  Nf6 {[%clk 0:02:57]} 2. Nf3 {[%clk 0:02:58]}  g6 {[%clk 0:02:58]} 3. Bf4 {[%clk 0:02:57]}  Bg7 {[%clk 0:02:59]} 4. e3 {[%clk 0:02:56]}  d6 {[%clk 0:02:46]} 5. h3 {[%clk 0:02:55]}  O-O {[%clk 0:02:47]} 6. c3 {[%clk 0:02:52]}  Nbd7 {[%clk 0:02:06]} 7. Be2 {[%clk 0:02:51]}  c5 {[%clk 0:01:50]} 8. O-O {[%clk 0:02:48]}  b6 {[%clk 0:01:48]} 9. Nbd2 {[%clk 0:02:45]}  Bb7 {[%clk 0:01:48]} 10. a4 {[%clk 0:02:33]}  a6 {[%clk 0:01:44]} 11. Qb1 {[%clk 0:02:32]}  e5 {[%clk 0:01:41]} 12. dxe5 {[%clk 0:02:26]}  dxe5 {[%clk 0:01:39]} 13. Bh2 {[%clk 0:02:19]}  e4 {[%clk 0:01:40]} 14. Ne1 {[%clk 0:02:13]}  Qe7 {[%clk 0:01:38]} 15. Nc4 {[%clk 0:02:12]}  Ne8 {[%clk 0:01:34]} 16. Nc2 {[%clk 0:02:08]}  b5 {[%clk 0:01:27]} 17. Na5 {[%clk 0:02:06]}  Bd5 {[%clk 0:01:23]} 18. Rd1 {[%clk 0:01:50]}  Qg5 {[%clk 0:01:22]} 19. Bf4 {[%clk 0:01:46]}  Qf5 {[%clk 0:01:06]} 20. Bg4 {[%clk 0:01:45]}  Qf6 {[%clk 0:00:58]} 21. Rxd5 {[%clk 0:01:42]}  Nb6 {[%clk 0:00:49]} 22. Rd1 {[%clk 0:01:36]}  Nxa4 {[%clk 0:00:50]} 23. Nb7 {[%clk 0:01:24]}  h5 {[%clk 0:00:50]} 24. Be2 {[%clk 0:01:20]}  g5 {[%clk 0:00:50]} 25. Bh2 {[%clk 0:01:18]}  h4 {[%clk 0:00:49]} 26. Nd6 {[%clk 0:01:15]}  Nxd6 {[%clk 0:00:49]} 27. Rxd6 {[%clk 0:01:15]}  Qe7 {[%clk 0:00:50]} 28. Rd5 {[%clk 0:01:01]}  Rfd8 {[%clk 0:00:49]} 29. Rxd8+ {[%clk 0:00:56]}  Rxd8 {[%clk 0:00:50]} 30. Na3 {[%clk 0:00:56]}  Rd2 {[%clk 0:00:49]} 31. Bf1 {[%clk 0:00:56]}  Rxb2 {[%clk 0:00:44]} 32. Qd1 {[%clk 0:00:53]}  Nxc3 {[%clk 0:00:43]} 33. Qe1 {[%clk 0:00:47]}  c4 {[%clk 0:00:42]} 34. Nb1 {[%clk 0:00:44]}  Nxb1 {[%clk 0:00:40]} 35. Rxb1 {[%clk 0:00:43]}  Rxb1 {[%clk 0:00:41]} 36. Qxb1 {[%clk 0:00:44]}  c3 {[%clk 0:00:42]} 37. Qa2 {[%clk 0:00:27]}  Qc5 {[%clk 0:00:37]} 38. Qxa6 {[%clk 0:00:23]}  c2 {[%clk 0:00:32]} 39. Qa8+ {[%clk 0:00:22]}  Bf8 {[%clk 0:00:32]} 0-1


[Site "https://www.chess.com"]

[Event "Titled Tuesday Blitz March 21 Early 2023"]
[White "Corredor Castellanos, Camilo"]
[Black "MANOJ_MISHRA123"]
[WhiteFideId "4425871"]
[WhiteElo "1994"]
[BlackElo "2106"]
[Result "1-0"]
[Round "07"]
[TimeControl "180+2"]
[Date "2023.03.21"]
[WhiteClock "0:01:52"]
[BlackClock "0:01:13"]

1. Nf3 {[%clk 0:03:00]}  Nf6 {[%clk 0:02:59]} 2. g3 {[%clk 0:02:59]}  g6 {[%clk 0:02:58]} 3. Bg2 {[%clk 0:02:59]}  Bg7 {[%clk 0:02:58]} 4. d3 {[%clk 0:03:00]}  O-O {[%clk 0:02:58]} 5. e4 {[%clk 0:03:00]}  d6 {[%clk 0:02:57]} 6. O-O {[%clk 0:03:00]}  c5 {[%clk 0:02:57]} 7. c3 {[%clk 0:02:55]}  Nc6 {[%clk 0:02:55]} 8. Re1 {[%clk 0:02:49]}  Bg4 {[%clk 0:02:49]} 9. h3 {[%clk 0:02:49]}  Bxf3 {[%clk 0:02:49]} 10. Bxf3 {[%clk 0:02:50]}  Nd7 {[%clk 0:02:45]} 11. Bg5 {[%clk 0:02:40]}  h6 {[%clk 0:02:43]} 12. Be3 {[%clk 0:02:39]}  Nce5 {[%clk 0:02:40]} 13. Bg2 {[%clk 0:02:39]}  Rb8 {[%clk 0:02:33]} 14. a4 {[%clk 0:02:36]}  a6 {[%clk 0:02:31]} 15. Na3 {[%clk 0:02:20]}  b5 {[%clk 0:02:28]} 16. axb5 {[%clk 0:02:21]}  axb5 {[%clk 0:02:25]} 17. f4 {[%clk 0:02:21]}  Nc6 {[%clk 0:02:20]} 18. e5 {[%clk 0:02:09]}  Na5 {[%clk 0:02:16]} 19. b4 {[%clk 0:02:08]}  cxb4 {[%clk 0:02:06]} 20. cxb4 {[%clk 0:02:09]}  dxe5 {[%clk 0:02:06]} 21. bxa5 {[%clk 0:02:06]}  exf4 {[%clk 0:02:05]} 22. Bxf4 {[%clk 0:02:07]}  b4 {[%clk 0:02:03]} 23. Nc4 {[%clk 0:02:06]}  Bxa1 {[%clk 0:02:00]} 24. Qxa1 {[%clk 0:02:07]}  Kh7 {[%clk 0:01:59]} 25. a6 {[%clk 0:02:04]}  Ra8 {[%clk 0:01:42]} 26. Bxa8 {[%clk 0:01:58]}  Qxa8 {[%clk 0:01:43]} 27. Rxe7 {[%clk 0:01:58]}  Nc5 {[%clk 0:01:41]} 28. a7 {[%clk 0:01:55]}  Nxd3 {[%clk 0:01:36]} 29. Qf6 {[%clk 0:01:52]}  Ne1 {[%clk 0:01:18]} 30. Rxf7+ {[%clk 0:01:50]}  Rxf7 {[%clk 0:01:15]} 31. Qxf7+ {[%clk 0:01:51]}  Kh8 {[%clk 0:01:13]} 32. Be5# {[%clk 0:01:52]} 1-0


[Site "https://www.chess.com"]

[Event "Titled Tuesday Blitz March 21 Early 2023"]
[White "Jesusesmifuerza"]
[Black "Coelho, Ramyres Santana"]
[BlackFideId "2120690"]
[WhiteElo "2038"]
[BlackElo "1888"]
[Result "0-1"]
[Round "07"]
[TimeControl "180+2"]
[Date "2023.03.21"]
[WhiteClock "0:01:17"]
[BlackClock "0:01:58"]

1. d4 {[%clk 0:03:00]}  Nf6 {[%clk 0:02:59]} 2. Bf4 {[%clk 0:03:01]}  Nh5 {[%clk 0:02:59]} 3. Bg5 {[%clk 0:02:55]}  h6 {[%clk 0:02:59]} 4. Bh4 {[%clk 0:02:54]}  g5 {[%clk 0:02:59]} 5. e4 {[%clk 0:02:51]}  Nf6 {[%clk 0:02:59]} 6. Bg3 {[%clk 0:02:39]}  Nxe4 {[%clk 0:02:58]} 7. Bd3 {[%clk 0:02:40]}  Nxg3 {[%clk 0:02:58]} 8. hxg3 {[%clk 0:02:41]}  Bg7 {[%clk 0:02:58]} 9. c3 {[%clk 0:02:40]}  c5 {[%clk 0:02:58]} 10. Nf3 {[%clk 0:02:37]}  cxd4 {[%clk 0:02:58]} 11. cxd4 {[%clk 0:02:35]}  Qb6 {[%clk 0:02:56]} 12. Qd2 {[%clk 0:02:26]}  Bxd4 {[%clk 0:02:50]} 13. Nxd4 {[%clk 0:02:17]}  Qxd4 {[%clk 0:02:51]} 14. Nc3 {[%clk 0:02:17]}  Qe5+ {[%clk 0:02:40]} 15. Kf1 {[%clk 0:02:05]}  Nc6 {[%clk 0:02:34]} 16. Re1 {[%clk 0:02:02]}  Qa5 {[%clk 0:02:15]} 17. a3 {[%clk 0:01:44]}  d6 {[%clk 0:02:14]} 18. Be4 {[%clk 0:01:27]}  Be6 {[%clk 0:02:05]} 19. Bd5 {[%clk 0:01:16]}  Bxd5 {[%clk 0:02:00]} 20. Nxd5 {[%clk 0:01:17]}  Qxd2 {[%clk 0:01:58]} 0-1


[Site "https://www.chess.com"]

[Event "Titled Tuesday Blitz March 21 Early 2023"]
[White "Leschinsky, Gary"]
[Black "Latreche, Khadidja"]
[WhiteFideId "30951321"]
[BlackFideId "7901780"]
[WhiteElo "1855"]
[BlackElo "1869"]
[Result "0-1"]
[Round "07"]
[TimeControl "180+2"]
[Date "2023.03.21"]
[WhiteClock "0:02:02"]
[BlackClock "0:01:18"]

1. c4 {[%clk 0:03:00]}  c5 {[%clk 0:02:36]} 2. Nf3 {[%clk 0:03:00]}  Nc6 {[%clk 0:02:36]} 3. d4 {[%clk 0:03:01]}  cxd4 {[%clk 0:02:34]} 4. Nxd4 {[%clk 0:03:02]}  g6 {[%clk 0:02:34]} 5. Nc3 {[%clk 0:02:58]}  Bg7 {[%clk 0:02:34]} 6. Nc2 {[%clk 0:02:59]}  a6 {[%clk 0:02:28]} 7. g3 {[%clk 0:02:58]}  e6 {[%clk 0:02:27]} 8. Bg2 {[%clk 0:02:44]}  Nge7 {[%clk 0:02:26]} 9. O-O {[%clk 0:02:36]}  O-O {[%clk 0:02:23]} 10. c5 {[%clk 0:02:36]}  Bxc3 {[%clk 0:02:08]} 11. bxc3 {[%clk 0:02:34]}  Qa5 {[%clk 0:02:08]} 12. Be3 {[%clk 0:02:25]}  Qxc3 {[%clk 0:02:05]} 13. Rc1 {[%clk 0:02:25]}  Qf6 {[%clk 0:01:58]} 14. Nd4 {[%clk 0:02:22]}  e5 {[%clk 0:01:48]} 15. Nb3 {[%clk 0:02:17]}  Rd8 {[%clk 0:01:41]} 16. Nd2 {[%clk 0:02:16]}  d5 {[%clk 0:01:39]} 17. cxd6 {[%clk 0:02:15]}  Qxd6 {[%clk 0:01:35]} 18. Ne4 {[%clk 0:02:15]}  Qxd1 {[%clk 0:01:34]} 19. Rfxd1 {[%clk 0:02:15]}  Rxd1+ {[%clk 0:01:33]} 20. Rxd1 {[%clk 0:02:15]}  Be6 {[%clk 0:01:31]} 21. Nc5 {[%clk 0:02:15]}  Bxa2 {[%clk 0:01:29]} 22. Nxb7 {[%clk 0:02:14]}  Rb8 {[%clk 0:01:23]} 23. Nc5 {[%clk 0:02:10]}  a5 {[%clk 0:01:20]} 24. Ra1 {[%clk 0:02:05]}  Rb1+ {[%clk 0:01:19]} 25. Rxb1 {[%clk 0:02:04]}  Bxb1 {[%clk 0:01:19]} 26. Bd5 {[%clk 0:02:02]}  Nxd5 {[%clk 0:01:18]} 0-1


[Site "https://www.chess.com"]

[Event "Titled Tuesday Blitz March 21 Early 2023"]
[White "Vargas Pereda, Jesus Manue"]
[Black "Cueto, Jonny"]
[WhiteFideId "5115710"]
[BlackFideId "3300145"]
[WhiteElo "1914"]
[BlackElo "2234"]
[Result "1-0"]
[Round "07"]
[TimeControl "180+2"]
[Date "2023.03.21"]
[WhiteClock "0:01:34"]
[BlackClock "0:01:57"]

1. d4 {[%clk 0:02:52]}  e6 {[%clk 0:02:54]} 2. Bf4 {[%clk 0:02:51]}  b6 {[%clk 0:02:53]} 3. Nf3 {[%clk 0:02:36]}  Bb7 {[%clk 0:02:53]} 4. e3 {[%clk 0:02:34]}  d6 {[%clk 0:02:45]} 5. Bd3 {[%clk 0:02:27]}  Nd7 {[%clk 0:02:42]} 6. O-O {[%clk 0:02:20]}  g6 {[%clk 0:02:42]} 7. c4 {[%clk 0:02:16]}  Bg7 {[%clk 0:02:41]} 8. Nc3 {[%clk 0:02:14]}  Ne7 {[%clk 0:02:33]} 9. e4 {[%clk 0:02:13]}  e5 {[%clk 0:02:32]} 10. Bg5 {[%clk 0:01:59]}  O-O {[%clk 0:02:26]} 11. Qd2 {[%clk 0:01:58]}  exd4 {[%clk 0:02:22]} 12. Ne2 {[%clk 0:01:55]}  c5 {[%clk 0:02:13]} 13. Bh6 {[%clk 0:01:52]}  Ne5 {[%clk 0:02:11]} 14. h4 {[%clk 0:01:41]}  Bxh6 {[%clk 0:01:56]} 15. Qxh6 {[%clk 0:01:38]}  Nxd3 {[%clk 0:01:57]} 16. Ng5 {[%clk 0:01:34]} 1-0


[Site "https://www.chess.com"]

[Event "Titled Tuesday Blitz March 21 Early 2023"]
[White "Wei, Yi"]
[Black "Seo, Jung Min"]
[WhiteFideId "8603405"]
[BlackFideId "1734687"]
[WhiteElo "2686"]
[BlackElo "2468"]
[Result "1-0"]
[Round "08"]
[TimeControl "180+2"]
[Date "2023.03.21"]
[WhiteClock "0:01:16"]
[BlackClock "0:01:01"]

1. b3 {[%clk 0:03:00]}  d5 {[%clk 0:02:59]} 2. Bb2 {[%clk 0:03:00]}  Nf6 {[%clk 0:02:59]} 3. Nf3 {[%clk 0:03:00]}  Bf5 {[%clk 0:02:58]} 4. g3 {[%clk 0:03:00]}  e6 {[%clk 0:02:57]} 5. Bg2 {[%clk 0:03:00]}  h6 {[%clk 0:02:57]} 6. d3 {[%clk 0:03:01]}  Nbd7 {[%clk 0:02:57]} 7. Nbd2 {[%clk 0:03:00]}  Bh7 {[%clk 0:02:57]} 8. O-O {[%clk 0:03:00]}  Be7 {[%clk 0:02:56]} 9. e4 {[%clk 0:02:58]}  O-O {[%clk 0:02:55]} 10. Qe2 {[%clk 0:02:57]}  a5 {[%clk 0:02:54]} 11. a3 {[%clk 0:02:57]}  c6 {[%clk 0:02:53]} 12. Kh1 {[%clk 0:02:51]}  Qc7 {[%clk 0:02:50]} 13. e5 {[%clk 0:02:41]}  Ne8 {[%clk 0:02:47]} 14. a4 {[%clk 0:02:41]}  Qd8 {[%clk 0:02:45]} 15. Rae1 {[%clk 0:02:35]}  Nc7 {[%clk 0:02:45]} 16. h4 {[%clk 0:02:27]}  Na6 {[%clk 0:02:44]} 17. Nd4 {[%clk 0:02:16]}  Nb4 {[%clk 0:02:41]} 18. Qd1 {[%clk 0:02:11]}  Rb8 {[%clk 0:02:17]} 19. f4 {[%clk 0:02:08]}  c5 {[%clk 0:02:14]} 20. Nb5 {[%clk 0:02:03]}  Re8 {[%clk 0:02:04]} 21. Bh3 {[%clk 0:01:59]}  Nf8 {[%clk 0:02:01]} 22. Kh2 {[%clk 0:01:52]}  Nc6 {[%clk 0:01:57]} 23. Nf3 {[%clk 0:01:49]}  Qd7 {[%clk 0:01:52]} 24. g4 {[%clk 0:01:45]}  Rbd8 {[%clk 0:01:45]} 25. h5 {[%clk 0:01:40]}  c4 {[%clk 0:01:43]} 26. g5 {[%clk 0:01:31]}  cxd3 {[%clk 0:01:41]} 27. cxd3 {[%clk 0:01:31]}  Nb4 {[%clk 0:01:36]} 28. gxh6 {[%clk 0:01:27]}  Nxd3 {[%clk 0:01:32]} 29. hxg7 {[%clk 0:01:20]}  Kxg7 {[%clk 0:01:32]} 30. f5 {[%clk 0:01:18]}  Nxb2 {[%clk 0:01:13]} 31. f6+ {[%clk 0:01:18]}  Kh8 {[%clk 0:01:13]} 32. Qd2 {[%clk 0:01:17]}  Bxf6 {[%clk 0:01:03]} 33. exf6 {[%clk 0:01:17]}  Nd3 {[%clk 0:01:01]} 34. Qh6 {[%clk 0:01:17]}  Qd6+ {[%clk 0:01:01]} 35. Nxd6 {[%clk 0:01:16]} 1-0


[Site "https://www.chess.com"]